bitfinex/quotes_SOLUSD_20250429
["timestamp","ask_amount","ask_price","bid_price","bid_amount"]
[1745944862958,0.03,149.27,149.26,21.84126379]
[1745944864064,0.03,149.27,149.26,47.98342536]
[1745944864266,0.03,149.27,149.26,49.9180485]
[1745944864472,0.03,149.31,149.29,26.0]
[1745944864766,0.03,149.31,149.3,15.14154518]
[1745944864964,0.03,149.31,149.3,30.28309036]
[1745944865143,0.03,149.31,149.3,15.14154518]
[1745944865552,0.03,149.31,149.3,30.42525193]
[1745944865844,0.03,149.31,149.3,15.28370675]
[1745944866552,0.03,149.31,149.3,21.98163039]
[1745944867575,0.03,149.31,149.3,30.95568577]
[1745944867970,0.03,149.31,149.3,6.69792364]
[1745944868278,0.03,149.31,149.3,30.8135242]
[1745944870572,0.03,149.31,149.27,0.14216157]
[1745944870771,0.03,149.31,149.27,6.69926977]
[1745944870941,0.03,149.31,149.29,24.11560056]
[1745944871337,0.03,149.31,149.3,24.11560056]
[1745944872480,0.03,149.31,149.3,30.8135242]
[1745944872850,0.03,149.31,149.3,6.69792364]
[1745944873045,0.03,149.31,149.3,24.11560056]
[1745944874547,0.03,149.31,149.3,30.8135242]
[1745944875567,0.03,149.31,149.3,24.11560056]
[1745944876381,0.03,149.31,149.3,30.8135242]
[1745944876879,0.03,149.31,149.3,24.11560056]
[1745944877377,0.03,149.31,149.3,30.8135242]
[1745944879372,0.03,149.31,149.3,6.69792364]
[1745944879679,0.03,149.31,149.3,30.8135242]
[1745944882089,0.03,149.31,149.3,30.95568577]
[1745944882682,0.03,149.31,149.3,55.07128633]
[1745944883388,0.03,149.31,149.3,30.95568577]
[1745944885858,0.03,149.31,149.3,30.8135242]
[1745944888197,0.03,149.31,149.3,55.07128633]
[1745944889689,0.03,149.31,149.3,36.97905571]
[1745944889887,0.03,149.31,149.3,37.26337885]
[1745944893598,0.03,149.31,149.3,119.76337884]
[1745944893974,0.03,149.31,149.3,121.24463454]
[1745944898199,0.03,149.31,149.3,119.76337884]
[1745944900011,0.03,149.31,149.3,104.69389359]
[1745944900205,0.03,149.31,149.3,6.69792364]
[1745944900372,0.03,149.31,149.3,21.76740889]
[1745944900881,0.03,149.31,149.3,15.06948525]
[1745944902914,0.03,149.31,149.28,32.69864163]
[1745944903075,0.03,149.31,149.3,15.06948525]
[1745944905899,0.03,149.31,149.27,6.69911099]
[1745944906092,0.03,149.31,149.29,15.06948525]
[1745944906708,15.09948525,149.31,149.27,15.06948525]
[1745944906900,15.06948525,149.3,149.26,15.06948525]
[1745944907079,15.06948525,149.3,149.25,20.39991614]
[1745944907281,15.06948525,149.3,149.26,15.06948525]
[1745944907592,15.06948525,149.3,149.26,21.76911671]
[1745944907795,15.06948525,149.3,149.26,6.69963146]
[1745944907990,15.06948525,149.3,149.26,21.76911671]
[1745944908199,0.03,149.31,149.27,15.06948525]
[1745944908509,0.03,149.31,149.29,15.06948525]
[1745944908881,0.03,149.31,149.28,15.06948525]
[1745944909076,0.03,149.31,149.26,6.69963146]
[1745944909299,0.03,149.31,149.29,15.06948525]
[1745944910116,0.03,149.31,149.29,21.7675456]
[1745944911114,0.03,149.31,149.3,15.06948525]
[1745944911694,0.03,149.31,149.3,19.9971934]
[1745944912008,0.03,149.31,149.3,4.92770815]
[1745944912316,0.03,149.31,149.3,11.62563179]
[1745944912518,0.03,149.31,149.3,4.92770815]
[1745944912891,0.03,149.31,149.3,11.62563179]
[1745944913616,0.03,149.31,149.29,6.69816315]
[1745944913817,0.03,149.31,149.29,21.7676484]
[1745944917717,0.03,149.31,149.26,125.39145808]
[1745944917920,0.03,149.31,149.28,15.06948525]
[1745944918416,0.03,149.31,149.29,4.92735914]
[1745944919198,0.03,149.31,149.28,21.7681053]
[1745944919910,0.03,149.31,149.29,15.06948525]
[1745944922204,0.03,149.31,149.28,15.06948525]
[1745944922695,0.03,149.31,149.27,15.06948525]
[1745944922924,15.09948525,149.31,149.28,4.92667178]
[1745944923415,15.06948525,149.3,149.28,4.92667178]
[1745944924196,15.06948525,149.3,149.26,41.06948525]
[1745944924612,33.71913411,149.29,149.24,15.06948525]
[1745944925197,33.71913411,149.29,149.25,15.06948525]
[1745944925395,18.64964886,149.29,149.25,15.06948525]
[1745944925803,16.69058525,149.3,149.26,15.06948525]
[1745944926002,1.6211,149.3,149.28,15.06948525]
[1745944926209,18.67964886,149.31,149.28,15.06948525]
[1745944926812,0.03,149.31,149.29,15.06948525]
[1745944927425,0.03,149.31,149.28,15.06948525]
[1745944928330,15.09948525,149.31,149.27,15.06948525]
[1745944929622,18.67964886,149.31,149.28,15.06948525]
[1745944929810,0.03,149.31,149.29,15.06948525]
[1745944935315,0.03,149.31,149.3,15.06948525]
[1745944937237,0.03,149.31,149.3,21.76740889]
[1745944940625,0.03,149.31,149.28,6.698821]
[1745944940932,0.03,149.31,149.3,15.06948525]
[1745944941720,0.03,149.31,149.3,21.76740889]
[1745944944916,0.03,149.31,149.3,36.97905571]
[1745944945113,0.03,149.31,149.3,37.26337885]
[1745944945422,0.03,149.31,149.3,21.76740889]
[1745944946744,0.03,149.31,149.3,6.69792364]
[1745944946950,0.03,149.31,149.3,21.76740889]
[1745944948629,0.03,149.31,149.3,36.97905571]
[1745944948828,0.03,149.31,149.3,37.26337885]
[1745944952057,0.03,149.31,149.3,119.76337884]
[1745944953560,0.03,149.31,149.3,104.69389359]
[1745944954367,0.03,149.31,149.3,119.76337884]
[1745944954533,0.03,149.32,149.31,0.28432314]
[1745944954866,0.03,149.37,149.34,26.0]
[1745944955032,0.03,149.37,149.36,15.06948525]
[1745944955463,0.03,149.37,149.36,21.76471824]
[1745944956130,0.03,149.37,149.36,22.19120295]
[1745944958140,0.03,149.37,149.36,6.69523299]
[1745944958332,0.03,149.37,149.36,21.76471824]
[1745944962530,0.03,149.37,149.36,21.90687981]
[1745944969544,0.03,149.37,149.36,21.76471824]
[1745944970639,0.03,149.37,149.35,15.06948525]
[1745944970834,15.09948525,149.37,149.3,16.74470566]
[1745944971065,15.09948525,149.37,149.33,15.06948525]
[1745944971655,0.03,149.37,149.34,15.06948525]
[1745944972942,0.03,149.37,149.34,21.76557131]
[1745944973247,0.03,149.37,149.34,15.06948525]
[1745944975176,0.03,149.37,149.36,15.06948525]
[1745944975469,0.03,149.37,149.35,15.06948525]
[1745944977464,0.03,149.37,149.34,6.69595534]
[1745944977770,0.03,149.37,149.36,15.06948525]
[1745944978740,0.03,149.37,149.36,41.06948525]
[1745944979052,0.03,149.37,149.36,47.76471824]
[1745944980540,0.03,149.39,149.36,148.91018553]
[1745944980746,0.03,149.39,149.38,15.06948525]
[1745944981162,0.03,149.39,149.38,21.76382184]
[1745944983956,0.03,149.39,149.38,36.83330709]
[1745944984158,0.03,149.39,149.38,36.97546866]
[1745944984479,0.03,149.4,149.39,26.14216157]
[1745944984673,0.03,149.4,149.39,41.21164682]
[1745944986170,0.03,149.4,149.39,48.18985843]
[1745944986377,0.03,149.43,149.39,64.92457962]
[1745944986669,0.03,149.43,149.42,15.06948525]
[1745944987152,0.03,149.43,149.42,15.21164682]
[1745944987861,0.03,149.43,149.42,15.06948525]
[1745944988297,0.03,149.43,149.42,21.76202975]
[1745944989357,0.03,149.43,149.42,6.6925445]
[1745944989589,0.03,149.43,149.42,21.76202975]
[1745944989792,0.03,149.43,149.41,15.06948525]
[1745944990082,0.03,149.43,149.41,21.76241705]
[1745944990285,15.09948525,149.43,149.38,6.69433659]
[1745944990467,15.09948525,149.43,149.39,15.06948525]
[1745944990656,15.06948525,149.42,149.38,21.76382184]
[1745944990857,15.09948525,149.43,149.39,15.06948525]
[1745944991062,15.06948525,149.42,149.38,21.76382184]
[1745944991562,15.09948525,149.43,149.38,21.76382184]
[1745944992465,33.71913411,149.42,149.38,21.76382184]
[1745944992663,15.06948525,149.41,149.37,6.69458728]
[1745944992861,15.06948525,149.41,149.37,21.76407253]
[1745944993773,15.06948525,149.42,149.37,21.76407253]
[1745944993970,15.06948525,149.42,149.38,15.06948525]
[1745944994186,15.06948525,149.42,149.38,21.76379421]
[1745944994570,33.74913411,149.43,149.39,15.06948525]
[1745944994976,18.67964886,149.43,149.4,15.06948525]
[1745944995162,33.74913411,149.43,149.38,6.69430896]
[1745944995361,15.06948525,149.42,149.38,21.76379421]
[1745944995567,0.03,149.43,149.4,15.06948525]
[1745944995870,0.03,149.43,149.41,15.06948525]
[1745944996273,0.03,149.43,149.4,21.76267261]
[1745944997085,0.03,149.43,149.4,6.69318736]
[1745944997287,0.03,149.43,149.41,15.06948525]
[1745944997659,0.03,149.43,149.42,15.06948525]
[1745944998082,0.03,149.43,149.42,21.76202975]
[1745944999459,0.03,149.43,149.42,21.90419132]
[1745945001271,0.03,149.43,149.42,21.76202975]
[1745945008916,0.03,149.46,149.42,38.91987572]
[1745945009095,0.03,149.46,149.45,15.06948525]
[1745945010190,0.03,149.46,149.45,21.76068632]
[1745945013394,0.03,149.46,149.45,38.5945371]
[1745945013608,0.03,149.46,149.45,37.25665628]
[1745945014099,0.03,149.46,149.45,38.59435597]
[1745945014306,0.03,149.46,149.45,37.25665628]
[1745945016401,1e-08,149.46,149.45,37.39881785]
[1745945016607,1e-08,149.46,149.45,119.89881784]
[1745945018337,1e-08,149.46,149.45,104.68717102]
[1745945018515,1e-08,149.46,149.45,119.75665627]
[1745945019325,1e-08,149.46,149.45,119.89881784]
[1745945019706,0.03,149.48,149.45,119.89881784]
[1745945019902,0.03,149.48,149.47,15.35380839]
[1745945019903,0.01,149.48,149.47,15.35380839]
[1745945020308,0.01,149.48,149.47,22.04411413]
[1745945021440,0.01,149.48,149.47,6.83246731]
[1745945021645,0.01,149.48,149.47,21.90195256]
[1745945025011,0.01,149.48,149.47,22.1862757]
[1745945025415,0.01,149.48,149.47,104.68627569]
[1745945026226,0.01,149.48,149.47,89.19030573]
[1745945026438,0.01,149.48,149.47,104.25979098]
[1745945030532,0.01,149.48,149.47,104.40195255]
[1745945032113,0.01,149.48,149.47,104.68627569]
[1745945033433,0.01,149.48,149.47,104.82843726]
[1745945036114,0.01,149.48,149.47,104.40195255]
[1745945036316,0.01,149.48,149.47,104.25979098]
[1745945036611,0.01,149.48,149.47,104.40195255]
[1745945036809,0.01,149.48,149.47,104.68627569]
[1745945040411,0.01,149.48,149.47,106.16600865]
[1745945041151,0.01,149.48,149.47,104.82843726]
[1745945041643,0.01,149.48,149.47,104.40195255]
[1745945042452,0.01,149.48,149.47,21.90195256]
[1745945044158,0.01,149.48,149.47,6.69030574]
[1745945044536,0.01,149.48,149.46,15.06948525]
[1745945046642,0.01,149.48,149.46,21.7601528]
[1745945048463,0.01,149.48,149.47,15.06948525]
[1745945048837,0.01,149.48,149.47,21.75979099]
[1745945049161,0.01,149.48,149.47,6.69030574]
[1745945050066,0.01,149.48,149.47,21.75979099]
[1745945058369,0.01,149.48,149.47,6.69030574]
[1745945058666,0.01,149.48,149.47,15.06948525]
[1745945060467,0.01,149.48,149.45,16.72786888]
[1745945060671,0.01,149.48,149.47,6.69030574]
[1745945064978,0.01,149.48,149.47,21.75979099]
[1745945068870,0.01,149.48,149.47,6.69030574]
[1745945069775,0.01,149.48,149.47,21.75979099]
[1745945074086,0.01,149.48,149.45,16.72786888]
[1745945074380,15.07948525,149.48,149.44,21.76113407]
[1745945074554,15.07948525,149.48,149.45,15.06948525]
[1745945074981,0.01,149.48,149.45,15.06948525]
[1745945075664,0.01,149.48,149.46,15.06948525]
[1745945076277,0.01,149.48,149.47,6.69030574]
[1745945077667,0.01,149.48,149.46,6.69061217]
[1745945079891,15.06948525,149.47,149.44,6.69164882]
[1745945080182,15.06948525,149.46,149.41,15.13248525]
[1745945080391,15.06948525,149.45,149.41,15.13248525]
[1745945080767,15.06948525,149.45,149.41,6.755793]
[1745945080965,15.06948525,149.44,149.41,6.755793]
[1745945081174,15.06948525,149.44,149.41,0.063]
[1745945081582,15.06948525,149.44,149.41,6.75592558]
[1745945081761,15.06948525,149.43,149.41,0.063]
[1745945082174,1.645,149.44,149.41,0.063]
[1745945082480,1.645,149.44,149.41,15.13248525]
[1745945082981,1.645,149.44,149.41,0.063]
[1745945083169,1.645,149.44,149.41,15.13248525]
[1745945083764,18.64964886,149.46,149.42,15.06948525]
[1745945084082,33.72913411,149.48,149.44,21.7607192]
[1745945084295,0.14216157,149.46,149.41,0.063]
[1745945084490,0.14216157,149.47,149.41,0.063]
[1745945084787,15.06948525,149.44,149.41,0.063]
[1745945086296,26.14216157,149.47,149.42,15.06948525]
[1745945086297,15.06948525,149.46,149.42,15.06948525]
[1745945086594,33.71913411,149.46,149.42,15.06948525]
[1745945087001,15.07948525,149.48,149.44,15.06948525]
[1745945087171,15.07948525,149.48,149.43,15.06948525]
[1745945087172,66.4189933,149.48,149.43,15.06948525]
[1745945087510,15.06948525,149.47,149.43,15.06948525]
[1745945087876,15.06948525,149.46,149.42,15.06948525]
[1745945088197,15.06948525,149.45,149.41,15.13248525]
[1745945088377,15.06948525,149.44,149.41,0.063]
[1745945090098,18.65964886,149.48,149.43,15.06948525]
[1745945090300,33.72913411,149.48,149.44,15.06948525]
[1745945090513,15.06948525,149.47,149.43,15.06948525]
[1745945090800,15.06948525,149.46,149.42,15.06948525]
[1745945090970,15.06948525,149.46,149.41,15.13248525]
[1745945091166,0.14216157,149.47,149.41,15.13248525]
[1745945091372,15.06948525,149.46,149.42,15.06948525]
[1745945091590,15.07948525,149.48,149.43,15.06948525]
[1745945091794,18.64964886,149.47,149.43,15.06948525]
[1745945092170,18.65964886,149.48,149.41,49.48828301]
[1745945092373,18.65964886,149.48,149.45,15.06948525]
[1745945092609,18.65964886,149.48,149.44,21.76084128]
[1745945092900,18.65964886,149.48,149.44,6.69135603]
[1745945093112,18.65964886,149.48,149.44,21.76084128]
[1745945093391,18.65964886,149.48,149.46,15.06948525]
[1745945093392,0.01,149.48,149.46,15.06948525]
[1745945093599,0.01,149.48,149.45,15.06948525]
[1745945094375,15.06948525,149.47,149.43,21.76146974]
[1745945097409,15.06948525,149.45,149.41,0.063]
[1745945097885,15.06948525,149.46,149.42,15.06948525]
[1745945098221,16.57858525,149.47,149.43,15.06948525]
[1745945098381,16.57858525,149.47,149.42,15.06948525]
[1745945098586,15.06948525,149.46,149.41,47.82540724]
[1745945098785,1.5091,149.47,149.41,0.063]
[1745945098984,15.06948525,149.45,149.41,0.063]
[1745945099202,15.06948525,149.45,149.41,15.13248525]
[1745945099601,18.64964886,149.46,149.41,0.063]
[1745945099602,15.06948525,149.44,149.41,0.063]
[1745945101712,15.06948525,149.43,149.41,0.063]
[1745945101908,15.06948525,149.42,149.41,0.063]
[1745945103233,18.64964886,149.42,149.41,0.063]
[1745945103401,33.71913411,149.42,149.41,0.063]
[1745945103600,40.55384018,149.42,149.41,0.063]
[1745945103803,42.16024018,149.42,149.41,0.063]
[1745945104926,27.09075493,149.42,149.41,0.063]
[1745945105224,42.16024018,149.42,149.41,0.063]
[1745945106027,35.46769568,149.42,149.41,0.063]
[1745945106226,15.06948525,149.43,149.41,0.063]
[1745945106422,33.71913411,149.44,149.41,0.063]
[1745945106631,15.06948525,149.42,149.41,0.063]
[1745945107128,15.06948525,149.43,149.41,0.063]
[1745945108626,18.64964886,149.45,149.41,0.063]
[1745945108805,33.86129568,149.42,149.41,0.063]
[1745945109010,41.44549568,149.42,149.41,0.063]
[1745945109526,41.72981882,149.42,149.41,0.063]
[1745945109698,25.769126,149.41,149.4,0.063]
[1745945109901,55.9080965,149.41,149.4,0.063]
[1745945110104,98.64057759,149.41,149.37,0.063]
[1745945110315,48.93078093,149.38,149.37,0.063]
[1745945111201,69.52944066,149.38,149.37,0.063]
[1745945112431,69.24511752,149.38,149.37,0.063]
[1745945114208,25.48663972,149.37,149.35,0.063]
[1745945114406,33.71913411,149.36,149.35,0.063]
[1745945115710,15.06948525,149.36,149.35,0.063]
[1745945116030,15.1454,149.38,149.35,0.063]
[1745945116031,28.68948525,149.38,149.35,0.063]
[1745945116532,15.06948525,149.38,149.35,0.063]
[1745945116917,15.06948525,149.37,149.35,0.063]
[1745945117820,15.06948525,149.36,149.35,0.063]
[1745945118428,40.55652867,149.36,149.35,0.063]
[1745945118756,42.45995181,149.36,149.35,0.063]
[1745945119240,42.60211338,149.36,149.35,0.063]
[1745945119912,66.94348039,149.35,149.34,0.063]
[1745945120311,51.44751043,149.35,149.34,0.063]
[1745945120531,33.71913411,149.35,149.34,0.063]
[1745945121635,24.12499779,149.35,149.34,0.063]
[1745945122337,42.77464665,149.35,149.34,0.063]
[1745945122940,42.91680822,149.35,149.34,0.063]
[1745945123313,42.77464665,149.35,149.34,0.063]
[1745945123518,18.64964886,149.35,149.34,0.063]
[1745945124024,42.77464665,149.35,149.34,0.063]
[1745945124818,24.12499779,149.35,149.34,0.063]
[1745945125425,42.77464665,149.36,149.34,0.063]
[1745945126155,24.12499779,149.36,149.34,0.063]
[1745945127768,18.64964886,149.4,149.34,24.18799779]
[1745945128058,18.64964886,149.38,149.35,24.12499779]
[1745945128263,42.77464665,149.38,149.34,24.18799779]
[1745945128835,18.79181043,149.4,149.35,6.69568128]
[1745945129244,24.12499779,149.38,149.35,6.69568128]
[1745945130246,24.12499779,149.39,149.35,47.55988228]
[1745945130851,24.12499779,149.38,149.35,23.43488449]
[1745945131064,18.64964886,149.4,149.35,47.55988228]
[1745945131272,24.12499779,149.39,149.35,47.55988228]
[1745945131974,18.64964886,149.4,149.35,47.55988228]
[1745945132144,42.77464665,149.41,149.37,24.12499779]
[1745945132672,13.62,149.42,149.37,24.12499779]
[1745945132848,13.62,149.42,149.38,24.12499779]
[1745945133053,24.15499779,149.43,149.38,24.12499779]
[1745945133370,24.15499779,149.43,149.39,24.12499779]
[1745945133570,0.03,149.43,149.4,24.12499779]
[1745945134040,0.03,149.43,149.36,26.42648471]
[1745945134041,24.15499779,149.43,149.39,24.12499779]
[1745945134241,0.03,149.43,149.39,30.81870691]
[1745945134436,24.15499779,149.43,149.39,30.81870691]
[1745945135166,0.03,149.43,149.39,30.81870691]
[1745945135371,24.15499779,149.43,149.39,30.81870691]
[1745945135666,24.15499779,149.43,149.39,6.69370912]
[1745945135966,0.03,149.43,149.39,30.81870691]
[1745945137469,24.15499779,149.43,149.39,30.81870691]
[1745945137767,0.03,149.43,149.39,30.81870691]
[1745945138666,0.03,149.43,149.4,24.12499779]
[1745945139071,0.03,149.43,149.39,30.81870691]
[1745945139248,24.12499779,149.42,149.39,6.69370912]
[1745945139647,24.12499779,149.4,149.37,6.6944832]
[1745945139877,24.12499779,149.4,149.36,32.69504676]
[1745945140560,0.03,149.43,149.39,24.12499779]
[1745945140759,24.15499779,149.43,149.38,24.12499779]
[1745945140956,24.12499779,149.42,149.38,24.12499779]
[1745945141159,24.15499779,149.43,149.36,49.43312924]
[1745945141361,24.12499779,149.42,149.38,24.12499779]
[1745945141768,0.03,149.43,149.38,24.12499779]
[1745945141974,24.12499779,149.42,149.38,24.12499779]
[1745945142272,24.12499779,149.42,149.37,24.12499779]
[1745945142469,24.12499779,149.42,149.38,6.69433659]
[1745945143173,24.12499779,149.42,149.38,30.81933438]
[1745945143469,24.15499779,149.43,149.38,30.81933438]
[1745945143677,15.09008906,149.43,149.38,21.75442565]
[1745945144057,15.06008906,149.41,149.38,6.69433659]
[1745945144580,0.03,149.43,149.35,8.17778471]
[1745945144581,15.06008906,149.39,149.35,6.69568128]
[1745945144757,15.06008906,149.37,149.35,6.69568128]
[1745945144966,15.06008906,149.37,149.34,6.75898342]
[1745945145473,18.64964886,149.39,149.34,0.063]
[1745945145474,15.06008906,149.35,149.34,0.063]
[1745945146372,15.06008906,149.36,149.34,6.75912963]
[1745945146586,18.79181043,149.39,149.34,15.12308906]
[1745945146587,15.06008906,149.39,149.34,15.12308906]
[1745945146891,18.64964886,149.4,149.34,15.12308906]
[1745945146892,15.06008906,149.37,149.34,0.063]
[1745945147876,24.11340892,149.37,149.34,0.063]
[1745945148080,24.11340892,149.38,149.34,24.17640892]
[1745945148381,24.11340892,149.37,149.34,0.063]
[1745945148989,24.11340892,149.36,149.34,0.063]
[1745945149179,0.14216157,149.39,149.34,0.063]
[1745945149380,24.11340892,149.36,149.34,0.063]
[1745945149562,24.11340892,149.37,149.34,0.063]
[1745945149863,18.64964886,149.38,149.35,24.11340892]
[1745945150066,42.76305778,149.38,149.36,6.69523299]
[1745945150253,24.11340892,149.39,149.36,6.69523299]
[1745945150881,24.11340892,149.38,149.36,6.69523299]
[1745945151266,24.11340892,149.39,149.36,6.69523299]
[1745945151684,24.11340892,149.38,149.35,6.69555034]
[1745945152180,24.11340892,149.37,149.34,6.75912963]
[1745945152562,24.11340892,149.36,149.34,6.75912963]
[1745945153291,24.11340892,149.36,149.34,0.063]
[1745945153488,24.11340892,149.35,149.34,0.063]
[1745945154762,42.76305778,149.35,149.34,0.063]
[1745945157284,24.11340892,149.36,149.34,0.063]
[1745945157489,24.11340892,149.35,149.34,0.063]
[1745945158587,42.76305778,149.35,149.34,0.063]
[1745945160195,18.64964886,149.35,149.34,0.063]
[1745945160389,42.76305778,149.35,149.34,0.063]
[1745945161377,49.60090063,149.35,149.34,0.063]
[1745945162097,49.88522377,149.35,149.34,0.063]
[1745945162308,50.02738534,149.35,149.34,0.063]
[1745945162499,45.07613357,149.33,149.32,0.063]
[1745945162700,99.32795141,149.33,149.32,0.063]
[1745945163006,99.47011298,149.33,149.32,0.063]
[1745945163774,18.933972,149.32,149.31,0.063]
[1745945163996,68.69228984,149.32,149.31,0.063]
[1745945164193,68.97661298,149.32,149.31,0.063]
[1745945165306,75.6736395,149.32,149.31,0.063]
[1745945167218,44.933972,149.3,149.29,0.063]
[1745945167422,18.933972,149.29,149.28,0.063]
[1745945167595,43.04738092,149.29,149.28,0.063]
[1745945167921,0.28432314,149.28,149.25,0.063]
[1745945168087,43.33170406,149.28,149.25,0.063]
[1745945168282,52.494872,149.27,149.25,0.063]
[1745945168499,100.72168984,149.27,149.25,0.063]
[1745945169337,83.44971226,149.27,149.25,0.063]
[1745945169643,70.42501935,149.27,149.25,0.063]
[1745945169937,68.90521935,149.27,149.25,0.063]
[1745945174052,68.76305778,149.27,149.25,0.063]
[1745945174204,44.64964886,149.27,149.25,0.063]
[1745945174403,68.76305778,149.27,149.25,0.063]
[1745945174719,42.76305778,149.27,149.25,0.063]
[1745945179028,49.60448912,149.27,149.25,0.063]
[1745945179646,0.14216157,149.26,149.25,0.063]
[1745945179845,44.79181043,149.23,149.22,0.063]
[1745945180017,68.90521935,149.23,149.22,0.063]
[1745945180217,42.76305778,149.23,149.22,0.063]
[1745945180918,42.90521935,149.23,149.22,0.063]
[1745945181932,49.60628481,149.23,149.22,0.063]
[1745945182529,49.89060795,149.23,149.22,0.063]
[1745945183834,75.89060795,149.23,149.22,0.063]
[1745945184033,76.03276952,149.23,149.22,0.063]
[1745945186540,50.03276952,149.23,149.22,0.063]
[1745945187331,43.18954249,149.23,149.22,0.063]
[1745945187746,42.90521935,149.23,149.22,0.063]
[1745945187948,68.90521935,149.23,149.22,0.063]
[1745945188463,75.60628481,149.23,149.22,0.063]
[1745945188640,75.74844638,149.23,149.22,0.063]
[1745945188837,75.89060795,149.23,149.22,0.063]
[1745945189946,45.07613357,149.21,149.2,0.063]
[1745945190254,19.07613357,149.2,149.19,0.063]
[1745945190457,56.97170406,149.2,149.19,0.063]
[1745945192850,42.76305778,149.2,149.19,0.063]
[1745945193553,18.64964886,149.2,149.19,0.063]
[1745945193754,24.11340892,149.21,149.19,0.063]
[1745945193971,18.64964886,149.21,149.19,6.76586212]
[1745945194364,24.11340892,149.21,149.19,6.76586212]
[1745945196255,18.64964886,149.21,149.19,6.76586212]
[1745945197047,18.64964886,149.23,149.19,30.87927104]
[1745945197252,18.64964886,149.23,149.19,47.63642634]
[1745945197664,37.75340892,149.24,149.2,24.11340892]
[1745945198369,24.11340892,149.24,149.2,24.11340892]
[1745945199079,24.11340892,149.24,149.21,6.70196367]
[1745945200456,18.64964886,149.24,149.21,30.81537259]
[1745945200666,18.67964886,149.27,149.23,24.11340892]
[1745945200963,18.67964886,149.27,149.24,24.11340892]
[1745945201173,18.67964886,149.27,149.25,6.7001675]
[1745945201174,0.03,149.27,149.25,6.7001675]
[1745945201385,24.14340892,149.27,149.25,6.7001675]
[1745945201685,0.03,149.27,149.25,6.7001675]
[1745945202272,0.03,149.27,149.25,30.81357642]
[1745945202476,0.03,149.27,149.26,24.11340892]
[1745945203390,0.03,149.27,149.25,30.81357642]
[1745945203964,0.03,149.27,149.26,24.11340892]
[1745945207875,0.03,149.27,149.25,30.81357642]
[1745945208191,18.64964886,149.15,149.13,0.063]
[1745945208493,42.76305778,149.14,149.13,0.063]
[1745945210685,49.46816707,149.14,149.13,0.063]
[1745945211265,0.42648471,149.09,148.98,0.063]
[1745945211470,24.11340892,149.06,149.01,24.11340892]
[1745945211887,24.11340892,149.05,149.0,24.11340892]
[1745945212190,24.11340892,149.04,148.99,6.7115879]
[1745945212396,24.11340892,149.04,148.99,24.11340892]
[1745945212713,24.11340892,149.04,148.98,6.77521429]
[1745945212899,24.11340892,149.04,148.99,24.11340892]
[1745945213267,24.11340892,149.05,149.0,24.11340892]
[1745945213488,24.11340892,149.04,148.99,24.11340892]
[1745945214279,24.11340892,149.03,148.99,24.11340892]
[1745945214479,24.11340892,149.02,148.98,56.88862321]
[1745945214794,24.11340892,149.03,148.99,24.11340892]
[1745945215106,24.11340892,149.03,148.98,56.88862321]
[1745945215898,24.11340892,149.03,148.99,24.11340892]
[1745945217178,24.11340892,149.01,148.98,26.063]
[1745945217480,24.11340892,149.0,148.98,0.063]
[1745945217687,24.11340892,149.02,148.98,0.063]
[1745945217907,24.11340892,149.02,148.98,24.17640892]
[1745945218111,24.11340892,149.03,148.99,24.11340892]
[1745945218281,42.76305778,149.05,149.01,24.11340892]
[1745945218688,42.76305778,149.05,149.0,24.11340892]
[1745945218895,24.11340892,149.04,149.0,24.11340892]
[1745945220490,24.11340892,149.04,149.0,30.82452407]
[1745945220695,24.11340892,149.05,149.01,24.11340892]
[1745945221191,24.11340892,149.08,149.04,24.11340892]
[1745945221587,24.11340892,149.07,149.03,24.11340892]
[1745945222104,24.11340892,149.08,149.04,24.11340892]
[1745945222404,24.11340892,149.08,149.03,0.42648471]
[1745945222405,24.11340892,149.07,149.03,24.53989363]
[1745945222579,24.11340892,149.08,149.05,6.709158]
[1745945223205,27.47064283,149.09,149.07,24.11340892]
[1745945223416,27.47064283,149.09,149.08,24.11340892]